fUSD/lending_fUSD_20251120
["ID","MTS","AMOUNT","RATE_DAILY","PERIOD"]
[394524164,1763664034719,-500.0,0.0004198,120]
[394524165,1763664034762,-412.67820862,0.0004198,120]
[394524166,1763664034804,-500.0,0.0004198,30]
[394524167,1763664034846,-500.0,0.0004198,30]
[394524168,1763664034888,-400.0,0.0004198,120]
[394524169,1763664034929,-500.0,0.0004198,120]
[394524170,1763664034970,-500.0,0.0004198,120]
[394524171,1763664035013,-500.0,0.0004198,30]
[394524172,1763664035054,-562.61878149,0.0004198,120]
[394524173,1763664035097,-400.0,0.0004198,120]
[394524174,1763664035138,-500.0,0.0004198,30]
[394524175,1763664035181,-500.0,0.0004198,30]
[394524176,1763664035223,-500.0,0.0004198,30]
[394524177,1763664035266,-500.0,0.0004198,120]
[394524178,1763664035309,-500.0,0.0004198,30]
[394524179,1763664035352,-361.89,0.0004198,120]
[394524180,1763664035395,-502.57878077,0.0004198,120]
[394524181,1763664035442,-500.0,0.0004198,30]
[394524182,1763664035488,-400.0,0.0004198,120]
[394524183,1763664035532,-500.0,0.0004198,30]
[394524184,1763664035580,-500.0,0.0004198,30]
[394524185,1763664035627,-500.0,0.0004198,120]
[394524186,1763664035675,-500.0,0.0004198,30]
[394524187,1763664035721,-500.0,0.0004198,120]
[394524188,1763664035765,-500.0,0.0004198,30]
[394524189,1763664035807,-500.0,0.0004198,30]
[394524190,1763664035850,-500.0,0.0004198,120]
[394524191,1763664035893,-500.0,0.0004198,30]
[394524192,1763664035935,-500.0,0.0004198,120]
[394524193,1763664035978,-414.89117245,0.0004198,120]
[394524194,1763664036020,-500.0,0.0004198,120]
[394524195,1763664036062,-500.0,0.0004198,30]
[394524196,1763664036106,-500.0,0.0004198,120]
[394524197,1763664036149,-500.0,0.0004198,30]
[394524198,1763664036191,-500.0,0.0004198,120]
[394524199,1763664036341,-500.0,0.0004198,120]
[394524200,1763664036385,-500.0,0.0004198,30]
[394524201,1763664036429,-400.0,0.0004198,120]
[394524202,1763664036476,-293.31,0.0004198,30]
[394524203,1763664036521,-500.0,0.0004198,120]
[394524204,1763664036570,-500.0,0.0004198,120]
[394524205,1763664036613,-500.0,0.0004198,120]
[394524206,1763664036656,-500.0,0.0004198,120]
[394524207,1763664036700,-500.0,0.0004198,120]
[394524208,1763664036742,-500.0,0.0004198,120]
[394524209,1763664036783,-400.0,0.0004198,120]
[394524210,1763664036823,-558.36,0.0004198,120]
[394524211,1763664036865,-500.0,0.0004198,120]
[394524212,1763664036905,-500.0,0.0004198,120]
[394524213,1763664036959,-500.0,0.0004198,120]
[394524214,1763664037028,-500.0,0.0004198,120]
[394524215,1763664037098,-500.0,0.0004198,120]
[394524216,1763664037171,-161.22665989,0.0004198,120]
[394524217,1763664037243,-500.0,0.0004198,120]
[394524218,1763664037300,-500.0,0.0004198,120]
[394524219,1763664037344,-305.28,0.0004198,120]
[394524220,1763664037386,-500.0,0.0004198,120]
[394524221,1763664037429,-645.91,0.0004198,120]
[394524222,1763664037471,-500.0,0.0004198,120]
[394524223,1763664037515,-1066.93893294,0.0004198,120]
[394524224,1763664037556,-416.66299348,0.0004198,120]
[394524225,1763664037599,-500.0,0.0004198,120]
[394524226,1763664037656,-400.0,0.0004198,120]
[394524227,1763664037720,-326.64,0.0004198,120]
[394524228,1763664037778,-420.03971056,0.0004198,120]
[394524229,1763664037840,-500.0,0.0004198,120]
[394524230,1763664037899,-500.0,0.0004198,120]
[394524231,1763664037959,-500.0,0.0004198,120]
[394524232,1763664038013,-500.0,0.0004198,120]
[394524233,1763664038069,-500.0,0.0004198,120]
[394524234,1763664038122,-300.0,0.0004198,120]
[394524235,1763664038180,-500.0,0.0004198,120]
[394524236,1763664038237,-424.57713668,0.0004198,120]
[394524237,1763664038293,-500.0,0.0004198,120]
[394524238,1763664038349,-511.9985175,0.0004198,120]
[394524239,1763664038405,-500.0,0.0004198,120]
[394524240,1763664038466,-500.0,0.0004198,120]
[394524241,1763664038523,-539.55,0.0004198,120]
[394524242,1763664038579,-500.0,0.0004198,120]
[394524243,1763664038635,-500.0,0.0004198,120]
[394524244,1763664038691,-500.0,0.0004198,120]
[394524245,1763664038752,-523.92000001,0.0004198,120]
[394524246,1763664038807,-151.0,0.0004198,50]
[394524247,1763664038865,-151.0,0.0004198,50]
[394524248,1763664038921,-400.0,0.0004198,120]
[394524249,1763664038978,-400.0,0.0004198,120]
[394524250,1763664039037,-500.0,0.0004198,120]
[394524251,1763664039096,-326.86673344,0.0004198,120]
[394524252,1763664039281,-405.71532164,0.0004198,120]
[394524253,1763664039346,-168.71522902,0.0004198,120]
[394524254,1763664039388,-424.57113314,0.0004198,120]
[394524255,1763664039432,-500.0,0.0004198,120]
[394524256,1763664039474,-639.05368306,0.0004198,120]
[394524257,1763664039518,-500.0,0.0004198,120]
[394524258,1763664039560,-300.0,0.0004198,120]
[394524259,1763664039601,-500.0,0.0004198,120]
[394524260,1763664039641,-376.5873367,0.0004198,120]
[394524261,1763664039684,-572.76,0.0004198,120]
[394524262,1763664039726,-151.0,0.0004198,50]
[394524263,1763664039768,-400.0,0.0004198,120]
[394524264,1763664039809,-151.0,0.0004198,50]
[394524265,1763664039848,-500.0,0.0004198,120]
[394524266,1763664039888,-361.79811572,0.0004198,120]
[394524267,1763664039928,-500.0,0.0004198,120]
[394524268,1763664039969,-300.0,0.0004198,120]
[394524269,1763664040008,-400.0,0.0004198,120]
[394524270,1763664040046,-500.0,0.0004198,120]
[394524271,1763664040084,-500.0,0.0004198,120]
[394524272,1763664040121,-499.0455698,0.0004198,120]
[394524273,1763664040161,-500.0,0.0004198,120]
[394524274,1763664040201,-533.70742462,0.0004198,120]
[394524275,1763664040242,-456.28,0.0004198,120]
[394524276,1763664040284,-500.0,0.0004198,120]
[394524277,1763664040327,-500.0,0.0004198,120]
[394524278,1763664040371,-500.0,0.0004198,120]
[394524279,1763664040417,-500.0,0.0004198,120]
[394524280,1763664040460,-386.19251478,0.0004198,120]
[394524281,1763664040502,-404.01780569,0.0004198,120]
[394524282,1763664040543,-500.0,0.0004198,120]
[394524283,1763664040585,-400.0,0.0004198,120]
[394524284,1763664040630,-500.0,0.0004198,120]
[394524285,1763664040671,-500.0,0.0004198,120]
[394524286,1763664040712,-535.06148469,0.0004198,120]
[394524287,1763664040753,-500.0,0.0004198,120]
[394524288,1763664040793,-500.0,0.0004198,120]
[394524289,1763664040833,-500.0,0.0004198,120]
[394524290,1763664040871,-600.423958,0.0004198,120]
[394524291,1763664040913,-462.04387193,0.0004198,120]
[394524292,1763664040954,-500.0,0.0004198,120]
[394524293,1763664040995,-571.59,0.0004198,120]
[394524294,1763664041036,-500.46171795,0.0004198,120]
[394524295,1763664041076,-587.96,0.0004198,120]
[394524296,1763664041116,-400.0,0.0004198,120]
[394524297,1763664041158,-500.0,0.0004198,120]
[394524298,1763664041200,-500.0,0.0004198,120]
[394524299,1763664041241,-500.0,0.0004198,120]
[394524300,1763664041284,-601.21,0.0004198,120]
[394524301,1763664041324,-494.0,0.0004198,120]
[394524302,1763664041364,-500.0,0.0004198,120]
[394524303,1763664041406,-500.0,0.0004198,120]
[394524304,1763664041452,-480.36,0.0004198,120]
[394524305,1763664041497,-400.0,0.0004198,120]
[394524306,1763664041539,-300.0,0.0004198,120]
[394524307,1763664041582,-500.0,0.0004198,120]
[394524308,1763664041625,-563.85008088,0.0004198,120]
[394524309,1763664041668,-400.0,0.0004198,120]
[394524310,1763664041709,-394.29634247,0.0004198,120]
[394524311,1763664041748,-500.0,0.0004198,120]
[394524312,1763664041788,-502.82,0.0004198,120]
[394524313,1763664041827,-400.0,0.0004198,120]
[394524314,1763664041867,-272.2247387,0.0004198,120]
[394524315,1763664041909,-400.0,0.0004198,120]
[394524316,1763664041950,-402.09501124,0.0004198,120]
[394524317,1763664041990,-400.0,0.0004198,120]
[394524318,1763664042031,-400.0,0.0004198,120]
[394524319,1763664042072,-500.0,0.0004198,120]
[394524320,1763664042112,-500.0,0.0004198,120]
[394524321,1763664042152,-400.0,0.0004198,120]
[394524322,1763664042308,-151.0,0.0004198,50]
[394524323,1763664042353,-500.0,0.0004198,120]
[394524324,1763664042400,-500.0,0.0004198,120]
[394524325,1763664042449,-464.88,0.0004198,120]
[394524326,1763664042494,-500.0,0.0004198,120]
[394524327,1763664042536,-500.0,0.0004198,120]
[394524328,1763664042579,-500.0,0.0004198,120]
[394524329,1763664042622,-447.1,0.0004198,120]
[394524330,1763664042665,-500.0,0.0004198,120]
[394524331,1763664042707,-352.08,0.0004198,120]
[394524332,1763664042748,-500.0,0.0004198,120]
[394524333,1763664042788,-433.78560526,0.0004198,120]
[394524334,1763664042828,-500.0,0.0004198,120]
[394524335,1763664042867,-500.0,0.0004198,120]
[394524336,1763664042908,-500.0,0.0004198,120]
[394524337,1763664042948,-500.0,0.0004198,120]
[394524338,1763664042988,-500.0,0.0004198,120]
[394524339,1763664043028,-500.0,0.0004198,120]
[394524340,1763664043067,-500.0,0.0004198,120]
[394524341,1763664043106,-500.0,0.0004198,120]
[394524342,1763664043147,-400.0,0.0004198,120]
[394524343,1763664043186,-500.0,0.0004198,120]
[394524344,1763664043225,-500.0,0.0004198,120]
[394524345,1763664043270,-500.0,0.0004198,120]
[394524346,1763664043313,-548.48,0.0004198,120]
[394524347,1763664043356,-500.0,0.0004198,120]
[394524348,1763664043400,-484.64,0.0004198,120]
[394524349,1763664043446,-500.0,0.0004198,120]
[394524350,1763664043490,-413.6585096,0.0004198,120]
[394524351,1763664043532,-400.0,0.0004198,120]
[394524352,1763664043575,-500.0,0.0004198,120]
[394524353,1763664043619,-484.09895513,0.0004198,120]
[394524354,1763664043662,-400.0,0.0004198,120]
[394524355,1763664043705,-421.19193191,0.0004198,120]
[394524356,1763664043750,-500.0,0.0004198,120]
[394524357,1763664043793,-500.0,0.0004198,120]
[394524358,1763664043837,-500.0,0.0004198,120]
[394524359,1763664043878,-500.0,0.0004198,120]
[394524360,1763664043920,-500.0,0.0004198,120]
[394524361,1763664043961,-500.0,0.0004198,120]
[394524362,1763664044001,-500.0,0.0004198,120]
[394524363,1763664044042,-500.0,0.0004198,120]
[394524364,1763664044081,-549.02692587,0.0004198,120]
[394524365,1763664044120,-500.0,0.0004198,120]
[394524366,1763664044162,-500.0,0.0004198,120]
[394524367,1763664044202,-295.23,0.0004198,120]
[394524368,1763664044245,-500.0,0.0004198,120]
[394524369,1763664044288,-500.0,0.0004198,120]
[394524370,1763664044329,-500.0,0.0004198,120]
[394524371,1763664044370,-500.0,0.0004198,120]
[394524372,1763664044414,-500.0,0.0004198,120]
[394524373,1763664044456,-500.0,0.0004198,120]
[394524374,1763664044500,-400.0,0.0004198,120]
[394524375,1763664044544,-500.0,0.0004198,120]
[394524376,1763664044589,-562.24,0.0004198,120]
[394524377,1763664044630,-500.0,0.0004198,120]
[394524378,1763664044672,-500.0,0.0004198,120]
[394524379,1763664044713,-151.0,0.0004198,50]
[394524380,1763664044754,-500.0,0.0004198,120]
[394524381,1763664044796,-483.37,0.0004198,120]
[394524382,1763664044836,-151.0,0.0004198,50]
[394524383,1763664044876,-605.1731221,0.0004198,120]
[394524384,1763664044916,-151.0,0.0004198,50]
[394524385,1763664044957,-151.0,0.0004198,50]
[394524386,1763664045000,-405.247604,0.0004198,120]
[394524387,1763664045041,-405.88988278,0.0004198,120]
[394524388,1763664045082,-557.86225335,0.0004198,120]
[394524389,1763664045123,-400.0,0.0004198,120]
[394524390,1763664045163,-500.0,0.0004198,120]
[394524391,1763664045210,-389.06881355,0.0004198,120]
[394524392,1763664045253,-556.2571253,0.0004198,120]
[394524393,1763664045429,-400.0,0.0004198,120]
[394524394,1763664045472,-424.5227159,0.0004198,120]
[394524395,1763664045515,-400.0,0.0004198,120]
[394524396,1763664045559,-500.0,0.0004198,120]
[394524397,1763664045609,-500.0,0.0004198,120]
[394524398,1763664045652,-161.52,0.0004198,120]
[394524399,1763664045699,-500.0,0.0004198,120]
[394524400,1763664045739,-300.0,0.0004198,120]
[394524401,1763664045784,-500.0,0.0004198,120]
[394524402,1763664045827,-426.3952556,0.0004198,120]
[394524403,1763664045871,-500.0,0.0004198,120]
[394524404,1763664045917,-500.0,0.0004198,120]
[394524405,1763664045963,-208.44574796,0.0004198,120]
[394524406,1763664046007,-400.0,0.0004198,120]
[394524407,1763664046050,-411.26080239,0.0004198,120]
[394524408,1763664046092,-500.0,0.0004198,120]
[394524409,1763664046133,-586.01672732,0.0004198,120]
[394524410,1763664046173,-530.06772786,0.0004198,120]
[394524411,1763664046212,-248.71818872,0.0004198,120]
[394524412,1763664046253,-607.48808092,0.0004198,120]
[394524413,1763664046295,-500.0,0.0004198,120]
[394524414,1763664046336,-161.57731619,0.0004198,120]
[394524415,1763664046377,-406.42891005,0.0004198,120]
[394524416,1763664046423,-400.0,0.0004198,120]
[394524417,1763664047122,401.40642756,0.0004198,120]
[394524418,1763664047738,400.0,0.0004198,120]
[394524419,1763664048094,510.61254395,0.0004198,120]
[394524420,1763664049082,500.0,0.0004198,120]
[394524421,1763664049128,307.36,0.0004198,120]
[394524422,1763664051853,151.0,0.0004198,50]
[394524423,1763664052327,151.0,0.0004198,50]
[394524424,1763664052709,151.0,0.0004198,50]
[394524425,1763664053042,151.0,0.0004198,50]
[394524426,1763664053386,151.0,0.0004198,50]
[394524427,1763664053666,500.0,0.0004198,120]
[394524428,1763664053849,151.0,0.0004198,50]
[394524429,1763664053912,500.0,0.0004198,120]
[394524430,1763664054168,500.0,0.0004198,120]
[394524431,1763664054439,216.07,0.0004198,120]
[394524432,1763664054558,182.959553,0.0004198,50]
[394524433,1763664072356,151.0,0.0004198,50]
[394524434,1763664073308,151.0,0.0004198,50]
[394524435,1763664073637,151.0,0.0004198,50]
[394524436,1763664073932,151.0,0.0004198,50]
[394524437,1763664080925,151.0,0.0004198,50]
[394524438,1763664081298,151.0,0.0004198,50]
[394524439,1763664081650,151.0,0.0004198,50]
[394524440,1763664082013,151.0,0.0004198,50]
[394524441,1763664082477,151.0,0.0004198,50]
[394524442,1763664082799,151.0,0.0004198,50]
[394524443,1763664083738,151.0,0.0004198,50]
[394524444,1763664084630,151.0,0.0004198,50]
[394524445,1763664084965,151.0,0.0004198,50]
[394524446,1763664085293,151.0,0.0004198,50]
[394524447,1763664085614,151.0,0.0004198,50]
[394524448,1763664087015,151.0,0.0004198,50]
[394524449,1763664087481,217.14236,0.0004198,50]
[394524450,1763664092251,151.0,0.0004198,50]
[394524451,1763664092534,151.0,0.0004198,50]
[394524452,1763664093013,151.0,0.0004198,50]
[394524453,1763664093332,153.0452,0.0004198,50]
[394524454,1763664099479,400.0,0.0004198,120]
[394524455,1763664101163,400.0,0.0004198,120]
[394524456,1763664103280,432.3469985,0.0004198,120]
[394524457,1763664105553,400.0,0.0004198,120]
[394524458,1763664107503,459.94,0.0004198,120]
[394524459,1763664109445,580.65,0.0004198,120]
[394524461,1763664111341,400.0,0.0004198,120]
[394524462,1763664115224,500.0,0.0004198,120]
[394524463,1763664115468,500.0,0.0004198,120]
[394524464,1763664115718,500.0,0.0004198,120]
[394524465,1763664115973,500.0,0.0004198,120]
[394524466,1763664116231,500.0,0.0004198,120]
[394524468,1763664122823,419.82413883,0.0004198,120]
[394524469,1763664125223,513.72908807,0.0004198,120]
[394524470,1763664128562,511.79,0.0004198,120]
[394524471,1763664129467,558.31,0.0004198,120]
[394524472,1763664150548,500.0,0.0004198,120]
[394524473,1763664150789,330.50663311,0.0004198,120]
[394524474,1763664155518,559.17017207,0.0004198,120]
[394524475,1763664165975,250.0,0.00016008,2]
[394524493,1763664303030,200.0,0.00016056,2]
[394524504,1763664318510,342.32253792,0.00041996,120]
[394524505,1763664324193,403.35119621,0.00041996,120]
[394524511,1763664351005,400.0,0.00041996,120]
[394524512,1763664370631,400.0,0.00041996,120]
[394524513,1763664393272,400.0,0.00041996,120]
[394524514,1763664397806,5946.28224679,0.00015926,2]
[394524515,1763664397830,10000.01,0.00015926,2]
[394524516,1763664397856,10000.01,0.00015926,2]
[394524517,1763664397879,10000.01,0.00015926,2]
[394524518,1763664397901,10000.01,0.00015926,2]
[394524519,1763664397925,10000.01,0.00015926,2]
[394524520,1763664397948,10000.01,0.00015926,2]
[394524521,1763664397971,10000.01,0.00015926,2]
[394524522,1763664397994,10000.01,0.00015926,2]
[394524523,1763664398016,10000.01,0.00015926,2]
[394524524,1763664398052,127995.56775321,0.00015926,2]
[394524536,1763664422680,446.21,0.00015971,2]
[394524537,1763664423694,455.11,0.00041996,120]
[394524556,1763664425585,500.0,0.00041996,120]
[394524561,1763664425676,3830.698217,0.00016119,2]
[394524568,1763664425818,579.84,0.00041996,120]
[394524614,1763664427812,531.67,0.00041996,120]
[394524617,1763664435408,500.0,0.00041996,120]
[394524618,1763664435650,300.0,0.00041996,120]
[394524619,1763664436443,500.0,0.00041996,120]
[394524620,1763664436813,510.1,0.00041996,120]
[394524622,1763664437605,500.0,0.00041996,120]
[394524623,1763664437845,167.95,0.00041996,120]
[394524695,1763664439608,1606.841959,0.00016119,2]
[394524750,1763664443391,400.0,0.00041996,120]
[394524751,1763664443805,500.0,0.00041996,120]
[394524752,1763664444078,485.07,0.00041996,120]
[394524753,1763664445218,500.0,0.00041996,120]
[394524754,1763664445456,150.88041252,0.00041996,120]
[394524755,1763664446053,500.0,0.00041996,120]
[394524756,1763664446292,616.30037411,0.00041996,120]
[394524757,1763664453493,500.0,0.00041996,120]
[394524758,1763664453745,517.92,0.00041996,120]
[394524759,1763664456789,500.0,0.00041996,120]
[394524760,1763664456893,580.31098638,0.00041996,120]
[394524761,1763664460220,511.85821376,0.00041996,120]
[394524762,1763664462144,548.78172616,0.00041996,120]
[394524769,1763664470290,468.37938638,0.000161,2]
[394524782,1763664536666,500.0,0.00041996,120]
[394524783,1763664536917,500.0,0.00041996,120]
[394524784,1763664537168,500.0,0.00041996,120]
[394524785,1763664537414,451.45585085,0.00041996,120]
[394524786,1763664544258,20000.0,0.00041996,30]
[394524820,1763664613703,500.0,0.00041996,120]
[394524821,1763664613939,291.02370646,0.00041996,120]
[394524826,1763664620621,500.0,0.00041996,120]
[394524827,1763664620891,544.13161961,0.00041996,120]
[394524858,1763664631414,-893.0,0.00016199,2]
[394524860,1763664631424,-300.0,0.00016199,2]
[394524861,1763664631434,-1200.0,0.00016199,2]
[394524862,1763664631444,-150.0,0.000162,2]
[394524863,1763664631453,-150.0,0.000162,2]
[394524864,1763664631463,-150.0,0.000162,2]
[394524865,1763664631472,-150.0,0.000162,2]
[394524866,1763664631481,-150.0,0.000162,2]
[394524867,1763664631490,-150.0,0.000162,2]
[394524868,1763664631499,-150.0,0.000162,2]
[394524869,1763664631508,-150.0,0.000162,2]
[394524870,1763664631517,-150.0,0.000162,2]
[394524871,1763664631527,-250.0,0.000162,2]
[394524872,1763664631536,-150.0,0.000165,2]
[394524873,1763664631545,-28.73504545,0.000165,2]
[394524874,1763664631559,-121.26495455,0.000165,2]
[394524875,1763664631572,-182.35,0.00016573,2]
[394524876,1763664631583,-150.0,0.0001665,2]
[394524877,1763664631594,-722.29467877,0.00016704,2]
[394524878,1763664631603,-2128.25186185,0.00016704,2]
[394524879,1763664631618,-371.74813815,0.00016704,2]
[394524880,1763664631628,-5006.78347767,0.00016704,2]
[394524882,1763664631639,-253.63571453,0.00016704,2]
[394524883,1763664631651,-260.853,0.00016704,2]
[394524884,1763664631662,-269.99999994,0.00016704,2]
[394524885,1763664631673,-4967.05570746,0.00016704,2]
[394524886,1763664631689,-660.31754676,0.00016704,2]
[394524887,1763664631701,-1529.01178852,0.00016704,2]
[394524888,1763664631711,-842.66037514,0.00016704,2]
[394524889,1763664631723,-315.37789303,0.00016704,2]
[394524890,1763664631734,-777.99217548,0.00016704,2]
[394524891,1763664631744,-1377.21976991,0.00016704,2]
[394524892,1763664631756,-14270.68385156,0.00016704,2]
[394524894,1763664631766,-255.0,0.00016726,2]
[394524896,1763664631776,-2520.64816136,0.00016765,2]
[394524898,1763664631785,-4566.85442103,0.00016765,2]
[394524900,1763664631795,-717.29300857,0.00016765,2]
[394524902,1763664631804,-150.0,0.000168,2]
[394524904,1763664631813,-150.0,0.000168,2]
[394524906,1763664631823,-150.0,0.000168,2]
[394524908,1763664631832,-500.0,0.00016803,2]
[394524910,1763664631844,-500.0,0.00016803,2]
[394524912,1763664631854,-500.0,0.00016803,2]
[394524913,1763664631863,-500.0,0.00016803,2]
[394524914,1763664631872,-500.0,0.00016803,2]
[394524915,1763664631882,-500.0,0.00016803,2]
[394524916,1763664631891,-553.74262219,0.00016803,2]
[394524917,1763664631901,-177.10265652,0.00016803,2]
[394524919,1763664631911,-500.0,0.00016803,2]
[394524921,1763664631920,-156.635,0.00016803,2]
[394524923,1763664631930,-1129.82,0.00016803,2]
[394524925,1763664631944,-500.0,0.00016803,2]
[394524927,1763664631966,-1505.2706385,0.00016865,2]
[394524929,1763664631976,-62574.15834567,0.00016865,2]
[394524941,1763664637471,-3134.95363759,0.00016865,2]
[394524942,1763664637483,-692.42360236,0.00016865,2]
[394524943,1763664637494,-484.39141668,0.00016865,2]
[394524944,1763664637504,-57.86350251,0.00016865,2]
[394524945,1763664637517,-1580.29999603,0.00016865,2]
[394524946,1763664637575,-1793.89475332,0.00016865,2]
[394524947,1763664637589,-105.41315734,0.00016865,2]
[394524948,1763664637599,-500.0,0.00016873,2]
[394524949,1763664637611,-315.20269062,0.00016873,2]
[394524950,1763664637621,-111.04165448,0.00016873,2]
[394524951,1763664637687,-388.95834552,0.00016873,2]
[394524952,1763664637697,-2520.64816136,0.00016891,2]
[394524953,1763664637707,-4566.85442098,0.00016891,2]
[394524954,1763664637717,-717.29300856,0.00016927,2]
[394524955,1763664637727,-215.39173611,0.00016973,2]
[394524956,1763664637737,-500.0,0.00016973,2]
[394524958,1763664637746,-500.0,0.00016973,2]
[394524960,1763664637755,-500.0,0.00016973,2]
[394524961,1763664637765,-500.0,0.00016973,2]
[394524962,1763664637774,-500.49591173,0.00016973,2]
[394524963,1763664637783,-63578.17962404,0.00017,2]
[394524964,1763664637792,-250.0,0.00017,2]
[394524965,1763664637802,-2520.64816136,0.00017017,2]
[394524966,1763664637811,-4566.85442098,0.00017017,2]
[394524967,1763664637820,-567.05277273,0.00017073,2]
[394524968,1763664637830,-323.86150375,0.00017073,2]
[394524969,1763664637839,-1685.1,0.00017076,2]
[394524970,1763664637850,-717.29300856,0.00017089,2]
[394524971,1763664637860,-150.0,0.000171,2]
[394524972,1763664637869,-150.0,0.000171,2]
[394524973,1763664637879,-150.0,0.000171,2]
[394524974,1763664637889,-150.0,0.000171,2]
[394524975,1763664637899,-2751.0,0.00017123,2]
[394524976,1763664637908,-466.7998894,0.00017123,2]
[394524977,1763664637918,-172.0,0.00017125,2]
[394524978,1763664637927,-2520.64816136,0.00017143,2]
[394524979,1763664637937,-4566.85442098,0.00017143,2]
[394524980,1763664637947,-776.27340743,0.00017195,2]
[394524981,1763664637956,-172.0,0.00017196,2]
[394524982,1763664637966,-172.0,0.00017209,2]
[394524983,1763664637975,-151.0,0.00017215,2]
[394524984,1763664637984,-717.29300856,0.00017251,2]
[394524985,1763664637993,-2520.64816136,0.00017269,2]
[394524986,1763664638002,-4566.85442098,0.00017269,2]
[394524987,1763664638012,-396.08,0.0001729,2]
[394524988,1763664638022,-172.0,0.00017312,2]
[394524989,1763664638031,-172.0,0.00017321,2]
[394524990,1763664638041,-1000.0,0.00017395,2]
[394524991,1763664638051,-2520.64816136,0.00017396,2]
[394524992,1763664638064,-4566.85442098,0.00017396,2]
[394524993,1763664638074,-150.0,0.000174,2]
[394524994,1763664638083,-150.0,0.000174,2]
[394524995,1763664638093,-150.0,0.000174,2]
[394524996,1763664638102,-717.29300856,0.00017414,2]
[394524997,1763664638111,-500.0,0.00017421,2]
[394524998,1763664638121,-466.96816163,0.00017421,2]
[394524999,1763664638130,-1009.0,0.000175,2]
[394525000,1763664638140,-300.0,0.00017514,2]
[394525001,1763664638149,-542.09709135,0.00017521,2]
[394525002,1763664638159,-500.0,0.00017521,2]
[394525003,1763664638169,-500.0,0.00017521,2]
[394525004,1763664638180,-2520.64816136,0.00017522,2]
[394525005,1763664638190,-4566.85442098,0.00017522,2]
[394525006,1763664638200,-172.0,0.00017523,2]
[394525007,1763664638210,-284.35,0.00017524,2]
[394525008,1763664638220,-150.0,0.0001755,2]
[394525009,1763664638230,-717.29300856,0.00017576,2]
[394525010,1763664638240,-172.0,0.00017589,2]
[394525011,1763664638250,-1000.0,0.000176,2]
[394525012,1763664638260,-2520.64816136,0.00017648,2]
[394525013,1763664638270,-4566.85442098,0.00017648,2]
[394525014,1763664638280,-150.0,0.000177,2]
[394525015,1763664638290,-150.0,0.000177,2]
[394525016,1763664638300,-1000.0,0.000177,2]
[394525017,1763664638310,-420.0,0.00017707,2]
[394525018,1763664638320,-299.99,0.00017728,4]
[394525019,1763664638330,-150.99,0.00017728,2]
[394525020,1763664638340,-2776.52,0.00017728,2]
[394525021,1763664638352,-717.29300856,0.00017738,2]
[394525022,1763664638362,-2520.64816136,0.00017774,2]
[394525023,1763664638371,-4566.85442098,0.00017774,2]
[394525024,1763664638381,-1680.0,0.00017796,2]
[394525025,1763664638391,-268.16462858,0.000178,2]